fUSD/lending_fUSD_20240225
["ID","MTS","AMOUNT","RATE_DAILY","PERIOD"]
[315156749,1708894242612,-1073.68,0.00023992,2]
[315156751,1708894242623,-500.0,0.00023992,2]
[315156753,1708894242632,-500.0,0.00023992,2]
[315156755,1708894242641,-500.0,0.00023992,2]
[315156757,1708894242651,-258.06102463,0.00023992,2]
[315156759,1708894242660,-500.0,0.00023992,2]
[315156761,1708894242672,-500.0,0.00023992,2]
[315156763,1708894242681,-500.0,0.00023992,2]
[315156765,1708894242691,-500.0,0.00023992,2]
[315156768,1708894242701,-500.0,0.00023992,2]
[315156770,1708894242710,-451.08,0.00023992,2]
[315156771,1708894242719,-524.23,0.00023992,2]
[315156774,1708894242729,-500.0,0.00023992,2]
[315156776,1708894242738,-500.0,0.00023992,2]
[315156778,1708894242747,-500.0,0.00023992,2]
[315156780,1708894242757,-500.0,0.00023992,2]
[315156782,1708894242766,-500.0,0.00023992,2]
[315156783,1708894242776,-500.0,0.00023992,2]
[315156785,1708894242785,-511.03,0.00023992,2]
[315156787,1708894242794,-500.0,0.00023992,2]
[315156789,1708894242803,-347.24922167,0.00023992,2]
[315156792,1708894242816,-152.75077833,0.00023992,2]
[315156794,1708894242825,-500.0,0.00023992,2]
[315156796,1708894242834,-500.0,0.00023992,2]
[315156798,1708894242844,-500.0,0.00023992,2]
[315156800,1708894242853,-500.0,0.00023992,2]
[315156802,1708894242862,-500.0,0.00023992,2]
[315156804,1708894242871,-831.5,0.00023992,2]
[315156806,1708894242880,-500.0,0.00023992,2]
[315156808,1708894242890,-500.46600675,0.00023993,2]
[315156810,1708894242899,-467.63954244,0.00023993,2]
[315156812,1708894242908,-500.0,0.00023993,2]
[315156814,1708894242918,-423.72227761,0.00023993,2]
[315156816,1708894242927,-500.0,0.00023993,2]
[315156818,1708894242936,-500.0,0.00023993,2]
[315156820,1708894242945,-500.0,0.00023993,2]
[315156822,1708894242954,-500.0,0.00023993,2]
[315156824,1708894242964,-500.0,0.00023993,2]
[315156826,1708894242973,-500.0,0.00023993,2]
[315156828,1708894242982,-500.0,0.00023993,2]
[315156830,1708894242992,-500.0,0.00023993,2]
[315156832,1708894243001,-500.0,0.00023993,2]
[315156834,1708894243011,-500.0,0.00023993,2]
[315156836,1708894243020,-500.0,0.00023993,2]
[315156838,1708894243029,-347.24784744,0.00023993,2]
[315156840,1708894243038,-500.0,0.00023993,2]
[315156842,1708894243047,-500.0,0.00023993,2]
[315156844,1708894243056,-601.49225406,0.00023993,2]
[315156846,1708894243066,-500.0,0.00023993,2]
[315156848,1708894243075,-242.56,0.00023993,2]
[315156850,1708894243084,-583.39870986,0.00023993,2]
[315156852,1708894243093,-500.0,0.00023993,2]
[315156854,1708894243102,-500.0,0.00023993,2]
[315156856,1708894243111,-500.0,0.00023993,2]
[315156858,1708894243120,-500.0,0.00023993,2]
[315156860,1708894243129,-500.0,0.00023993,2]
[315156862,1708894243138,-500.0,0.00023993,2]
[315156864,1708894243148,-500.0,0.00023993,2]
[315156866,1708894243157,-500.0,0.00023993,2]
[315156867,1708894243167,-500.0,0.00023993,2]
[315156868,1708894243176,-468.52,0.00023993,2]
[315156869,1708894243186,-434.28423403,0.00023994,2]
[315156870,1708894243195,-500.0,0.00023994,2]
[315156871,1708894243204,-500.0,0.00023994,2]
[315156872,1708894243214,-500.0,0.00023994,2]
[315156873,1708894243223,-529.3,0.00023994,2]
[315156874,1708894243232,-330.0,0.00023994,2]
[315156875,1708894243241,-500.0,0.00023994,2]
[315156876,1708894243251,-500.0,0.00023994,2]
[315156878,1708894243260,-500.0,0.00023994,2]
[315156880,1708894243269,-500.0,0.00023996,2]
[315156882,1708894243279,-500.0,0.00023996,2]
[315156884,1708894243288,-500.0,0.00023996,2]
[315156886,1708894243297,-500.0,0.00023996,2]
[315156888,1708894243306,-500.0,0.00023996,2]
[315156890,1708894243315,-500.0,0.00023996,2]
[315156892,1708894243324,-352.45,0.00023996,2]
[315156894,1708894243333,-496.53984414,0.00023996,2]
[315156895,1708894243342,-500.0,0.00023996,2]
[315156897,1708894243352,-500.0,0.00023996,2]
[315156899,1708894243361,-500.0,0.00023996,2]
[315156901,1708894243370,-500.0,0.00023996,2]
[315156903,1708894243379,-500.0,0.00023996,2]
[315156905,1708894243388,-500.0,0.00023996,2]
[315156907,1708894243397,-500.0,0.00023996,2]
[315156909,1708894243407,-500.0,0.00023996,2]
[315156911,1708894243417,-500.0,0.00023996,2]
[315156913,1708894243426,-500.0,0.00023996,2]
[315156915,1708894243436,-500.0,0.00023996,2]
[315156917,1708894243445,-300.03605888,0.00023996,2]
[315156919,1708894243454,-262.73,0.00023996,2]
[315156922,1708894243463,-32566.5472672,0.00023997,2]
[315156924,1708894243474,-266.37676728,0.00023998,2]
[315156926,1708894243483,-396.32847374,0.00023998,2]
[315156928,1708894243492,-500.0,0.00023998,2]
[315156930,1708894243501,-500.0,0.00023998,2]
[315156932,1708894243511,-500.0,0.00023998,2]
[315156934,1708894243519,-500.0,0.00023998,2]
[315156936,1708894243529,-312.4,0.00023998,2]
[315156938,1708894243538,-500.0,0.00023998,2]
[315156940,1708894243547,-500.0,0.00023998,2]
[315156942,1708894243556,-500.0,0.00023998,2]
[315156944,1708894243565,-500.0,0.00023998,2]
[315156946,1708894243574,-500.0,0.00023998,2]
[315156947,1708894243583,-500.0,0.00023998,2]
[315156949,1708894243595,-500.0,0.00023998,2]
[315156951,1708894243603,-500.0,0.00023998,2]
[315156953,1708894243613,-500.0,0.00023998,2]
[315156955,1708894243622,-500.0,0.00023998,2]
[315156956,1708894243631,-500.0,0.00023998,2]
[315156957,1708894243642,-331.57074922,0.00023998,2]
[315156958,1708894243651,-463.01709819,0.00023998,2]
[315156959,1708894243661,-297.97488011,0.00023998,2]
[315156960,1708894243671,-500.0,0.00023998,2]
[315156961,1708894243680,-500.0,0.00023998,2]
[315156963,1708894243690,-500.0,0.00023998,2]
[315156965,1708894243699,-500.0,0.00023998,2]
[315156966,1708894243708,-500.0,0.00023998,2]
[315156967,1708894243718,-500.0,0.00023998,2]
[315156968,1708894243727,-500.0,0.00023998,2]
[315156969,1708894243736,-500.0,0.00023998,2]
[315156970,1708894243746,-213.20518737,0.00023998,2]
[315156971,1708894243755,-155.50370821,0.00023998,2]
[315156972,1708894243765,-1223.74,0.00023998,2]
[315156973,1708894243775,-500.0,0.00023998,2]
[315156974,1708894243784,-507.72254585,0.00023998,2]
[315156975,1708894243793,-500.0,0.00023998,2]
[315156976,1708894243803,-606931.35812768,0.00023999,4]
[315156977,1708894243812,-1362.75103776,0.00023999,2]
[315156978,1708894243822,-610.21871154,0.00023999,2]
[315156979,1708894243831,-500.0,0.00023999,2]
[315156980,1708894243841,-487.31855175,0.00023999,2]
[315156981,1708894243850,-500.0,0.00023999,2]
[315156982,1708894243860,-500.0,0.00023999,2]
[315156983,1708894243870,-500.0,0.00023999,2]
[315156984,1708894243879,-500.0,0.00023999,2]
[315156985,1708894243888,-500.0,0.00023999,2]
[315156986,1708894243897,-603.64899931,0.00023999,2]
[315156987,1708894243907,-277.68456948,0.00023999,2]
[315156988,1708894243917,-317.3,0.00023999,2]
[315156989,1708894243926,-1073.68,0.00023999,2]
[315156990,1708894243935,-1073.68,0.00023999,2]
[315156991,1708894243945,-1073.68,0.00023999,2]
[315156992,1708894243954,-1073.68,0.00023999,2]
[315156993,1708894243964,-1073.68,0.00023999,2]
[315156994,1708894243973,-1073.68,0.00023999,2]
[315156995,1708894243982,-1073.68,0.00023999,2]
[315156996,1708894243992,-1073.68,0.00023999,2]
[315156997,1708894244001,-1073.68,0.00023999,2]
[315156998,1708894244010,-1073.68,0.00023999,2]
[315156999,1708894244020,-1073.68,0.00023999,2]
[315157000,1708894244029,-1073.68,0.00023999,2]
[315157001,1708894244039,-1073.68,0.00023999,2]
[315157002,1708894244049,-1073.68,0.00023999,2]
[315157003,1708894244058,-1073.68,0.00023999,2]
[315157004,1708894244068,-1073.68,0.00023999,2]
[315157005,1708894244077,-1073.68,0.00023999,2]
[315157006,1708894244087,-1073.68,0.00023999,2]
[315157007,1708894244096,-1073.68,0.00023999,2]
[315157008,1708894244106,-1073.71,0.00023999,2]
[315157009,1708894244115,-500.0,0.00023999,2]
[315157010,1708894244125,-500.0,0.00023999,2]
[315157011,1708894244135,-500.0,0.00023999,2]
[315157012,1708894244145,-629.78,0.00023999,2]
[315157013,1708894244154,-383.53715056,0.00023999,2]
[315157014,1708894244164,-597.9,0.00023999,2]
[315157015,1708894244173,-524.23,0.00023999,2]
[315157016,1708894244182,-524.23,0.00023999,2]
[315157017,1708894244192,-524.23,0.00023999,2]
[315157018,1708894244202,-524.23,0.00023999,2]
[315157019,1708894244211,-500.0,0.00023999,2]
[315157020,1708894244221,-524.23,0.00023999,2]
[315157021,1708894244231,-500.0,0.00023999,2]
[315157022,1708894244240,-524.23,0.00023999,2]
[315157023,1708894244249,-500.0,0.00023999,2]
[315157024,1708894244259,-524.23,0.00023999,2]
[315157025,1708894244268,-500.0,0.00023999,2]
[315157026,1708894244278,-500.0,0.00023999,2]
[315157027,1708894244287,-524.23,0.00023999,2]
[315157028,1708894244297,-500.0,0.00023999,2]
[315157029,1708894244307,-524.23,0.00023999,2]
[315157030,1708894244316,-500.0,0.00023999,2]
[315157031,1708894244325,-500.0,0.00023999,2]
[315157032,1708894244334,-524.23,0.00023999,2]
[315157033,1708894244344,-500.0,0.00023999,2]
[315157034,1708894244353,-500.0,0.00023999,2]
[315157035,1708894244363,-524.23,0.00023999,2]
[315157036,1708894244372,-500.0,0.00023999,2]
[315157037,1708894244382,-500.0,0.00023999,2]
[315157038,1708894244391,-500.0,0.00023999,2]
[315157039,1708894244400,-500.0,0.00023999,2]
[315157040,1708894244410,-524.23,0.00023999,2]
[315157041,1708894244419,-500.0,0.00023999,2]
[315157042,1708894244429,-500.0,0.00023999,2]
[315157043,1708894244438,-524.23,0.00023999,2]
[315157044,1708894244447,-500.0,0.00023999,2]
[315157045,1708894244457,-341.66,0.00023999,2]
[315157046,1708894244466,-524.23,0.00023999,2]
[315157047,1708894244475,-468.86,0.00023999,2]
[315157048,1708894244484,-524.23,0.00023999,2]
[315157049,1708894244494,-524.23,0.00023999,2]
[315157050,1708894244503,-524.27,0.00023999,2]
[315157051,1708894244513,-500.0,0.00023999,2]
[315157052,1708894244522,-500.0,0.00023999,2]
[315157053,1708894244532,-500.0,0.00023999,2]
[315157054,1708894244541,-500.0,0.00023999,2]
[315157055,1708894244550,-500.0,0.00023999,2]
[315157056,1708894244559,-500.0,0.00023999,2]
[315157057,1708894244568,-500.0,0.00023999,2]
[315157058,1708894244578,-500.0,0.00023999,2]
[315157059,1708894244590,-500.0,0.00023999,2]
[315157060,1708894244600,-589.88,0.00023999,2]
[315157061,1708894244609,-511.03,0.00023999,2]
[315157062,1708894244619,-511.03,0.00023999,2]
[315157063,1708894244630,-511.03,0.00023999,2]
[315157064,1708894244639,-511.03,0.00023999,2]
[315157065,1708894244648,-511.03,0.00023999,2]
[315157066,1708894244658,-511.03,0.00023999,2]
[315157067,1708894244668,-511.03,0.00023999,2]
[315157068,1708894244678,-511.03,0.00023999,2]
[315157069,1708894244688,-511.03,0.00023999,2]
[315157070,1708894244697,-511.03,0.00023999,2]
[315157071,1708894244706,-1223.74,0.00023999,2]
[315157072,1708894244715,-511.03,0.00023999,2]
[315157073,1708894244725,-1223.74,0.00023999,2]
[315157074,1708894244734,-511.03,0.00023999,2]
[315157075,1708894244743,-1223.74,0.00023999,2]
[315157076,1708894244753,-1223.74,0.00023999,2]
[315157077,1708894244763,-511.03,0.00023999,2]
[315157078,1708894244773,-1223.74,0.00023999,2]
[315157079,1708894244782,-511.03,0.00023999,2]
[315157080,1708894244791,-500.0,0.00023999,2]
[315157081,1708894244801,-1223.74,0.00023999,2]
[315157082,1708894244810,-511.03,0.00023999,2]
[315157083,1708894244819,-500.0,0.00023999,2]
[315157084,1708894244828,-1223.74,0.00023999,2]
[315157085,1708894244968,-500.0,0.00023999,2]
[315157086,1708894245007,-1223.74,0.00023999,2]
[315157087,1708894245017,-511.03,0.00023999,2]
[315157088,1708894245027,-511.19349171,0.00023999,2]
[315157089,1708894245036,-387.2,0.00023999,2]
[315157090,1708894245046,-1223.74,0.00023999,2]
[315157091,1708894245055,-1223.74,0.00023999,2]
[315157092,1708894245065,-1223.74,0.00023999,2]
[315157093,1708894245074,-1223.74,0.00023999,2]
[315157094,1708894245084,-1223.74,0.00023999,2]
[315157095,1708894245093,-1223.74,0.00023999,2]
[315157096,1708894245103,-1223.74,0.00023999,2]
[315157097,1708894245112,-1223.74481987,0.00023999,2]
[315157098,1708894245122,-500.0,0.00023999,2]
[315157099,1708894245133,-500.0,0.00023999,2]
[315157100,1708894245144,-500.0,0.00023999,2]
[315157101,1708894245154,-210.88,0.00023999,2]
[315157102,1708894245165,-500.0,0.00023999,2]
[315157103,1708894245174,-831.5,0.00023999,2]
[315157104,1708894245184,-831.5,0.00023999,2]
[315157105,1708894245193,-831.5,0.00023999,2]
[315157106,1708894245203,-831.5,0.00023999,2]
[315157107,1708894245213,-831.5,0.00023999,2]
[315157108,1708894245223,-831.5,0.00023999,2]
[315157109,1708894245233,-831.5,0.00023999,2]
[315157110,1708894245242,-831.5,0.00023999,2]
[315157111,1708894245251,-831.5,0.00023999,2]
[315157112,1708894245261,-831.5,0.00023999,2]
[315157113,1708894245270,-831.5,0.00023999,2]
[315157114,1708894245279,-831.5,0.00023999,2]
[315157115,1708894245289,-831.5,0.00023999,2]
[315157116,1708894245298,-831.5,0.00023999,2]
[315157117,1708894245307,-831.5,0.00023999,2]
[315157118,1708894245317,-831.5,0.00023999,2]
[315157119,1708894245326,-831.53876869,0.00023999,2]
[315157120,1708894245335,-500.0,0.00023999,2]
[315157121,1708894245344,-500.0,0.00023999,2]
[315157123,1708894245354,-500.0,0.00023999,2]
[315157124,1708894245363,-500.0,0.00023999,2]
[315157125,1708894245373,-431.16000001,0.00023999,2]
[315157126,1708894245382,-82768.55659419,0.00024,30]
[315157129,1708894245434,-160408.62347467,0.00024,30]
[315157136,1708894245494,-93.39639206,0.00024,30]
[315157138,1708894245506,-270.24823158,0.00024,30]
[315157141,1708894245525,-293.51421104,0.00024,30]
[315157143,1708894245537,-2183.52994543,0.00024,30]
[315157146,1708894245549,-2176.7999999,0.00024,30]
[315157148,1708894245561,-408.2132951,0.00024,30]
[315157154,1708894245758,-500.0,0.00023798,2]
[315157155,1708894245768,-543.26,0.00023899,2]
[315157156,1708894245777,-155.0,0.00023998,2]
[315157157,1708894245786,-6451.01656536,0.00024,30]
[315157160,1708894318454,300.0,0.00021895,2]
[315157162,1708894392394,205.0,9.8e-05,2]
[315157163,1708894395886,211.52038115,0.0001305,2]
[315157164,1708894428712,150.0,0.000142,2]
[315157168,1708894552945,764.41,0.00020797,2]
[315157169,1708894593921,206.0,0.00021881,2]
[315157170,1708894726465,-150.0,0.00022038,2]
[315157171,1708894726488,-300.0,0.00022038,2]
[315157172,1708894726511,-11550.0,0.00022039,2]
[315157173,1708894778574,-13000.0,0.00022039,2]
[315157174,1708894832359,-6164.0,0.00022039,2]
[315157175,1708894832380,-300.0,0.00022516,2]
[315157176,1708894832403,-6536.0,0.00022517,2]
[315157177,1708895101409,152.0,0.00021514,3]
[315157189,1708895172575,1267.36961885,0.00021904,2]
[315157190,1708895172595,4000.0,0.00021904,2]
[315157191,1708895172614,4000.0,0.00021904,2]
[315157192,1708895172633,4000.0,0.00021904,2]
[315157193,1708895172652,4000.0,0.00021904,2]
[315157194,1708895172670,86.63038115,0.00021904,2]
[315157196,1708895180799,726.18,0.00020003,2]
[315157217,1708895315342,171.01,0.00021907,2]
[315157220,1708895342050,200.0,0.00021907,2]
[315157223,1708895368110,-874.95554737,0.00021917,2]
[315157224,1708895368129,-355.79,0.00021918,2]
[315157225,1708895368148,-364.36,0.0002197,2]
[315157226,1708895368167,-180.81,0.00021979,2]
[315157227,1708895368188,-150.0,0.00021983,2]
[315157228,1708895368208,-1331.53075263,0.00021989,2]
[315157282,1708895431775,-496.15,0.00021986,2]
[315157283,1708895431785,-500.0,0.00021987,2]
[315157284,1708895431794,-250.0,0.00021988,2]
[315157285,1708895431803,-649.19924737,0.00021989,2]
[315157286,1708895431812,-163.45894626,0.00021991,2]
[315157287,1708895431822,-2000.0,0.00022001,2]
[315157288,1708895431831,-500.0,0.00022091,2]
[315157289,1708895431840,-1188.68,0.00022096,2]
[315157290,1708895431849,-300.0,0.00022192,2]
[315157291,1708895431858,-163.45894624,0.00022201,2]
[315157292,1708895431867,-154.57,0.00022246,2]
[315157293,1708895431877,-206.0,0.00022263,2]
[315157294,1708895431886,-726.18,0.00022267,2]
[315157295,1708895431896,-262.37,0.00022308,2]
[315157296,1708895431905,-154.57,0.00022391,2]
[315157297,1708895431914,-150.0,0.00022404,2]
[315157298,1708895431924,-163.45894624,0.00022412,2]
[315157299,1708895431936,-1825.51,0.00022482,2]
[315157300,1708895431946,-1779.15,0.00022508,2]
[315157301,1708895431955,-1775.84,0.00022516,2]
[315157302,1708895431964,-154.57,0.00022536,2]
[315157303,1708895431974,-162.51,0.00022544,2]
[315157304,1708895431984,-1000.0,0.00022557,2]
[315157305,1708895431992,-163.45894624,0.00022622,2]
[315157306,1708895432002,-154.57,0.00022681,2]
[315157307,1708895432011,-1070.11,0.0002279,2]
[315157308,1708895432020,-154.57,0.00022825,2]
[315157309,1708895432030,-13641.345,0.00022825,2]
[315157310,1708895432039,-163.45894624,0.00022832,2]
[315157311,1708895432048,-1000.0,0.00022846,2]
[315157312,1708895432057,-11243.77,0.00022847,2]
[315157322,1708895432269,-178.73,0.00022883,2]
[315157323,1708895432278,-9999.99,0.00022883,2]
[315157324,1708895432287,-3059.37,0.00022883,2]
[315157325,1708895432296,-499.99,0.00022883,2]
[315157326,1708895432305,-412.96,0.00022883,2]
[315157327,1708895432315,-150.99,0.00022883,2]
[315157328,1708895432324,-757.8,0.00022883,2]
[315157329,1708895432334,-2456.8278,0.000229,2]
[315157330,1708895432343,-365.5236,0.000229,2]
[315157331,1708895432352,-3646.5,0.00022941,2]
[315157332,1708895432362,-154.57,0.0002297,2]
[315157333,1708895432372,-177.83,0.00022992,2]
[315157334,1708895432381,-29497.53656658,0.00023,2]
[315157335,1708895432630,-3095.0,0.00023,2]
[315157336,1708895432642,-1471.0323224,0.00023,2]
[315157337,1708895432651,-163.45894624,0.00023043,2]
[315157338,1708895432660,-1311.30297381,0.00023058,2]
[315157339,1708895432672,-10832.69702619,0.00023058,2]
[315157340,1708895432681,-41258.52,0.000231,5]
[315157341,1708895432691,-64502.96,0.000231,5]
[315157342,1708895432700,-33266.61,0.000231,5]
[315157343,1708895432710,-12279.44101978,0.000231,5]
[315157344,1708895432749,-59974.91898022,0.000231,5]
[315157345,1708895432758,-2436.18,0.000231,5]
[315157346,1708895432767,-2869.01312895,0.000231,5]
[315157347,1708895432787,-8721.65687105,0.000231,5]
[315157348,1708895432796,-4598.3908379,0.00023111,2]
[315157349,1708895432806,-154.57,0.00023115,2]
[315157350,1708895432814,-25547.63664468,0.0002324,5]
[315157351,1708895432883,151.0,0.00026981,120]
[315157356,1708895437674,-596.05964064,0.00022201,2]
[315157357,1708895437686,-545.15386629,0.00022201,2]
[315157358,1708895437725,-846.96649307,0.00022201,2]
[315157359,1708895437735,-3886.10467855,0.0002324,5]
[315157360,1708895437783,-494.22554084,0.0002324,5]
[315157361,1708895437795,-28938.96876786,0.0002324,5]
[315157362,1708895437807,-4102.02946677,0.0002324,5]
[315157363,1708895437819,-865.69,0.0002324,5]
[315157364,1708895437830,-678.54019659,0.0002324,5]
[315157365,1708895437842,-369.93113102,0.0002324,5]
[315157366,1708895437995,-313.75165,0.0002324,5]
[315157367,1708895438014,-169183.56192369,0.0002324,5]
[315157369,1708895438023,-1696.11,0.0002324,5]
[315157371,1708895438033,-10932.89,0.0002324,5]
[315157373,1708895438043,-163.45894624,0.00023253,2]
[315157375,1708895438052,-154.57,0.0002326,2]
[315157377,1708895438062,-150.0,0.00023306,2]
[315157379,1708895438071,-14151.0,0.000234,2]
[315157381,1708895438080,-3021.0,0.000234,2]
[315157383,1708895438090,-154.57,0.00023405,2]
[315157386,1708895438099,-1000.0,0.00023422,2]
[315157388,1708895438109,-163.45894624,0.00023463,2]
[315157389,1708895438118,-152.0,0.00023463,4]
[315157391,1708895438127,-354.95,0.0002354,2]
[315157393,1708895438137,-17886.73,0.00023568,5]
[315157395,1708895438146,-20182.42,0.00023568,5]
[315157398,1708895438156,-1980.73,0.00023633,2]
[315157400,1708895438165,-1347.71109895,0.00023673,2]
[315157402,1708895438175,-163.45894624,0.00023674,2]
[315157404,1708895438184,-879.15,0.00023679,2]
[315157406,1708895438193,-9934.6561,0.00023698,2]
[315157408,1708895438203,-2500.0,0.00023698,2]
[315157410,1708895438213,-500.0,0.00023797,2]
[315157412,1708895438222,-500.0,0.00023797,2]
[315157414,1708895438231,-500.0,0.00023797,2]
[315157416,1708895438241,-500.0,0.00023797,2]
[315157418,1708895438254,-500.0,0.00023797,2]
[315157420,1708895438264,-500.0,0.00023797,2]
[315157422,1708895438274,-500.0,0.00023797,2]
[315157424,1708895438283,-500.0,0.00023797,2]
[315157427,1708895438293,-500.0,0.00023797,2]
[315157429,1708895438302,-500.0,0.00023797,2]
[315157431,1708895438312,-500.0,0.00023797,2]
[315157433,1708895438321,-500.0,0.00023797,2]
[315157435,1708895438331,-500.0,0.00023797,2]
[315157437,1708895438340,-500.0,0.00023797,2]
[315157439,1708895438349,-500.0,0.00023797,2]
[315157441,1708895438359,-500.0,0.00023797,2]
[315157443,1708895438368,-500.0,0.00023797,2]
[315157445,1708895438378,-500.0,0.00023797,2]
[315157447,1708895438388,-500.0,0.00023797,2]
[315157449,1708895438398,-500.0,0.00023797,2]
[315157451,1708895438408,-612.62,0.00023797,2]
[315157453,1708895438419,-500.0,0.00023797,2]
[315157456,1708895438429,-500.0,0.00023797,2]
[315157457,1708895438438,-500.0,0.00023797,2]
[315157460,1708895438449,-867.19,0.00023797,2]
[315157462,1708895438459,-500.0,0.00023797,2]
[315157464,1708895438468,-942.38,0.00023797,2]
[315157466,1708895438478,-500.0,0.00023797,2]
[315157468,1708895438487,-500.0,0.00023797,2]
[315157470,1708895438496,-500.0,0.00023797,2]
[315157472,1708895438505,-500.0,0.00023797,2]
[315157474,1708895438516,-598.26,0.00023797,2]
[315157476,1708895438528,-500.0,0.00023797,2]
[315157478,1708895438538,-500.0,0.00023797,2]
[315157480,1708895438547,-500.0,0.00023797,2]
[315157482,1708895438557,-1074.55,0.00023797,2]
[315157484,1708895438567,-500.0,0.00023797,2]
[315157486,1708895438576,-500.0,0.00023797,2]
[315157488,1708895438587,-500.0,0.00023797,2]
[315157490,1708895438597,-500.0,0.00023797,2]
[315157492,1708895438606,-500.0,0.00023797,2]
[315157494,1708895438615,-500.0,0.00023797,2]
[315157497,1708895438625,-500.0,0.00023797,2]
[315157499,1708895438634,-500.0,0.00023797,2]
[315157501,1708895438644,-500.0,0.00023797,2]
[315157503,1708895438653,-500.0,0.00023797,2]
[315157505,1708895438663,-500.0,0.00023797,2]
[315157507,1708895438672,-500.0,0.00023797,2]
[315157509,1708895438681,-500.0,0.00023797,2]
[315157510,1708895438691,-500.0,0.00023797,2]
[315157513,1708895438701,-500.0,0.00023797,2]
[315157514,1708895438711,-500.0,0.00023797,2]
[315157517,1708895438721,-500.0,0.00023797,2]
[315157519,1708895438731,-544.87,0.00023797,2]
[315157521,1708895438740,-500.0,0.00023797,2]
[315157523,1708895438749,-500.0,0.00023797,2]
[315157525,1708895438758,-500.0,0.00023797,2]
[315157527,1708895438768,-617.53,0.00023797,2]
[315157529,1708895438777,-500.0,0.00023797,2]
[315157531,1708895438787,-500.0,0.00023797,2]
[315157533,1708895438796,-500.0,0.00023797,2]
[315157535,1708895438806,-500.0,0.00023797,2]
[315157537,1708895438815,-500.0,0.00023798,2]
[315157539,1708895438826,-500.0,0.00023798,2]
[315157541,1708895438835,-508.14376298,0.00023798,2]
[315157543,1708895438845,-500.0,0.00023798,2]
[315157545,1708895438854,-500.0,0.00023798,2]
[315157547,1708895438864,-609.70713093,0.00023798,2]
[315157549,1708895438873,-500.0,0.00023798,2]
[315157551,1708895438882,-500.0,0.00023798,2]
[315157553,1708895438891,-500.0,0.00023798,2]
[315157555,1708895438900,-500.0,0.00023798,2]
[315157557,1708895438910,-291.37692072,0.00023798,2]
[315157559,1708895438919,-500.0,0.00023798,2]
[315157561,1708895438929,-500.0,0.00023798,2]
[315157563,1708895438942,-500.0,0.00023798,2]
[315157564,1708895438952,-500.0,0.00023798,2]
[315157566,1708895438961,-500.0,0.00023798,2]
[315157568,1708895438971,-500.0,0.00023798,2]
[315157570,1708895438982,-553.44511269,0.00023798,2]
[315157572,1708895438991,-500.0,0.00023798,2]
[315157574,1708895439000,-500.0,0.00023798,2]
[315157576,1708895439010,-566.66,0.00023798,2]
[315157578,1708895439020,-500.0,0.00023798,2]
[315157580,1708895439029,-500.0,0.00023798,2]
[315157582,1708895439039,-500.0,0.00023798,2]
[315157585,1708895439049,-500.0,0.00023798,2]
[315157586,1708895439058,-500.0,0.00023798,2]
[315157588,1708895439068,-500.0,0.00023798,2]
[315157590,1708895439079,-500.0,0.00023798,2]